[Event "Bangabandhu Premier Div League 2023-24"]
[Site "Dhaka"]
[Date "2024.02.08"]
[Round "8.6"]
[White "Rathanvel, V S"]
[Black "Puranik, Abhimanyu"]
[Result "0-1"]
[ECO "C70"]
[WhiteElo "2474"]
[BlackElo "2645"]
[Annotator "TA"]
[PlyCount "104"]
[EventDate "2024.02.01"]
[EventCountry "BAN"]
[SourceTitle "playchess.com"]
[Source "ChessBase"]
[SourceQuality "1"]
[TimeControl "40/5400+30:1800+30"]

{[%evp 9,104,24,46,46,38,35,46,35,33,24,29,22,30,20,23,33,22,23,16,18,12,8,34,19,22,-1,0,0,0,0,0,0,20,0,0,0,0,-28,-21,-30,-38,-39,-38,-37,-22,-22,-4,-29,-20,-41,-33,-39,-30,-31,-31,-37,-33,-38,-38,-40,-44,-162,-143,-159,-151,-271,-287,-310,-283,-343,-333,-338,-337,-478,-470,-570,-566,-547,-548,-516,-491,-467,-420,-1137,-912,-29952,-29947,-1446,-1293,-29976,-29968,-29971,-29969,-29968,-29969,-29982,-29983]} 1. e4 {[%emt 0:00:03]} e5 {[%emt 0:00:21]} 2. Nf3 {[%emt 0:00:19]} Nc6 {[%emt 0:00:03]} 3. Bb5 {[%emt 0:00:10]} a6 {[%emt 0:00:17]} 4. Ba4 {[%emt 0:00:08]} Nge7 {[%emt 0:00:52]} 5. Nc3 {[%emt 0:02:35][%cal Bb1c3,Bc3d5,Bd5e3][%mdl 32]} d6 {[%emt 0:01:38]} 6. O-O {[%emt 0:02:36]} Bd7 {[%emt 0:02:10]} 7. Re1 {[%emt 0:04:09]} Ng6 {[%emt 0:03:09]} 8. Nd5 {[%emt 0:05:02] White is slightly better.} b5 {[%emt 0:08:41]} 9. Bb3 {[%emt 0:00:03]} Na5 $1 10. c3 {[%emt 0:10:12]} c6 {[%emt 0:02:26][%cal Oa5b3] [#] And now ...Nxb3! would win.} 11. Ne3 {[%emt 0:00:19]} Nxb3 {[%emt 0:00:05]} 12. axb3 {[%emt 0:00:12]} Be7 13. Nf5 {[%emt 0:07:12]} O-O {[%emt 0:02:00]} 14. d4 Re8 {[%emt 0:03:55]} 15. Nxe7+ Qxe7 {[%emt 0:00:24]} 16. dxe5 {[%emt 0:09:35]} dxe5 17. h3 {[%emt 0:12:07]} Red8 {[%emt 0:02:29][%cal Od7h3]} 18. Qc2 {[%emt 0:00:34]} h6 {[%emt 0:00:17]} 19. Be3 {[%emt 0:04:31]} Qf6 {[%emt 0:01:08][%cal Od7h3]} 20. Nh2 {[%emt 0:01:18]} Be6 {[%emt 0:06:25]} 21. Red1 {[%emt 0:08:48]} a5 {[%emt 0:04:46]} 22. Rxd8+ {[%emt 0:03:58]} Qxd8 23. f3 {[%emt 0:06:02]} h5 {[%emt 0:05:21]} 24. Nf1 Nf4 {[%emt 0:03:59]} 25. Ng3 Qg5 {[%emt 0:08:58]} 26. Bxf4 exf4 27. Nf5 h4 {[%emt 0:22:08]} 28. Qf2 {[%emt 0:23:14]} Bxf5 29. exf5 {[%emt 0:00:34]} Qxf5 $11 {[%emt 0:04:36][%mdl 4096] Endgame. KQR-KQR} 30. b4 {[%emt 0:00:19]} a4 {[%emt 0:00:29]} 31. Qxh4 {[%emt 0:00:09]} Qc2 {[%emt 0:02:52]} 32. Qf2 Qxf2+ {[%emt 0:04:49]} 33. Kxf2 $15 {[%emt 0:00:45] KR-KR} Rd8 {[%emt 0:00:05]} 34. Ke2 {[%emt 0:02:01] Prevents Rd2+} Kh7 {[%emt 0:00:04]} 35. b3 {[%emt 0:00:31] Black continues to play with concentration.} axb3 $19 {[%emt 0:00:08][%cal Od8a8]} 36. Ra3 {[%emt 0:00:05]} Re8+ {[%emt 0:00:11]} 37. Kd1 {[%emt 0:00:34]} (37. Kd2 $17 {is a better defense.}) 37... Kg6 {[%emt 0:06:12]} (37... b2 38. Rb3 $15) 38. Rxb3 {[%emt 0:00:01]} Kg5 {[%emt 0:00:04]} 39. Ra3 {[%emt 0:01:20]} Re7 {[%emt 0:01:11]} 40. Ra6 {[#]} Kh4 $1 {[%emt 0:03:27]} 41. Rxc6 {[%emt 0:31:02]} (41. c4 $142 Rc7 (41... bxc4 42. Rxc6 Rd7+ 43. Ke2 $11) 42. cxb5 cxb5 43. Ra5) 41... Kg3 {[%emt 0:30:08]} 42. c4 {[%emt 0:00:00]} Kxg2 {[%emt 0:00:00]} 43. cxb5 {[%emt 0:00:00]} Kxf3 {[%emt 0:00:00]} 44. b6 {[%emt 0:00:00]} Rb7 {[%emt 0:06:42]} 45. h4 {[%emt 0:00:00]} Kg3 {[%emt 0:00:30][%cal Of4f3] Threatens to win with ...f3!} 46. Rc7 {[%emt 0:00:00]} (46. Ke1 $142 f3 (46... Kxh4 47. Kf2 $11) 47. Rc5) 46... Rxb6 {[%emt 0:00:00] White must now prevent ...f3.} 47. Rxf7 {[%emt 0:00:00]} g6 {[%emt 0:00:00]} (47... Rxb4 48. h5 $11 (48. Rxg7+ Kf2 $11)) 48. Ke2 {[%emt 0:00:00]} Re6+ {[%emt 0:00:00]} (48... Rxb4 49. Rf6 Rb2+ (49... Kxh4 50. Rxg6 Rb3 51. Rg7 $11) 50. Ke1 $19) 49. Kf1 {[%emt 0:02:32]} f3 {[%emt 0:00:00] Black mates.} (49... Kxh4 50. Rxf4+ Kg5 51. Rc4 $11) 50. b5 {[%emt 0:00:41]} Rd6 {[%emt 0:00:00][%cal Rd6d1]} (50... Kxh4 51. Rxf3 Rb6 52. Rb3 $11) 51. Ke1 {[%emt 0:00:08]} Kg2 {[%emt 0:00:00]} ({Weaker is} 51... Kxh4 52. Rxf3 Kg4 53. Rf2 $14) 52. h5 {[%emt 0:01:55]} g5 {[%emt 0:00:00] Weighted Error Value: White=0.55/Black=0.03 (flawless) .  Mistake:       	White=4     	---        Inaccurate:     	White=2     	Black=1      OK:         	White=14    	Black=18     Best:        	White=3     	Black=6      Strong:       	---       	Black=2} ({Inferior is} 52... gxh5 53. Rg7+ Kh3 54. Kf2 $11) 0-1

[Event "Bangabandhu Premier Div League 2023-24"]
[Site "Dhaka"]
[Date "2024.02.08"]
[Round "8.6"]
[White "Mrittika Mallick"]
[Black "Rabby, Salim"]
[Result "1-0"]
[ECO "C54"]
[WhiteElo "1859"]
[BlackElo "1931"]
[Annotator "TA"]
[PlyCount "95"]
[EventDate "2024.02.01"]
[EventCountry "BAN"]
[SourceTitle "playchess.com"]
[Source "ChessBase"]
[SourceQuality "1"]
[TimeControl "40/5400+30:1800+30"]

{[%evp 14,95,22,35,53,31,31,18,20,13,10,-2,-2,-14,-7,-14,8,0,29,16,11,8,0,-36,0,-50,28,10,45,32,61,73,101,82,122,107,103,52,123,130,122,81,162,188,225,220,227,228,214,221,234,223,222,224,345,312,325,303,583,584,770,569,952,517,514,439,431,410,966,475,477,477,442,452,645,643,29989,29990,29991,29991,29992,29992,29992,29993]} 1. e4 {[%emt 0:00:02]} Nc6 {[%emt 0:00:43]} 2. Nf3 {[%emt 0:00:24]} e5 {[%emt 0:01:29]} 3. Bc4 {[%emt 0:00:06]} Bc5 {[%emt 0:00:29]} 4. d3 {[%emt 0:00:08]} Nf6 {[%emt 0:00:11]} 5. O-O {[%emt 0:00:08]} O-O {[%emt 0:00:16]} 6. Bg5 {[%emt 0:01:04]} h6 {[%emt 0:00:38]} 7. Bh4 {[%emt 0:00:15]} d6 {[%emt 0:00:22]} 8. c3 {[%emt 0:00:59]} Bg4 {[%emt 0:00:32]} 9. a4 {[%emt 0:01:20] b4 is the strong threat.} a5 {[%emt 0:03:39]} 10. Nbd2 {[%emt 0:02:33]} g5 {[%emt 0:00:23] The position is equal.} 11. Bg3 {[%emt 0:00:08]} Nh5 {[%emt 0:00:21]} 12. Re1 {[%emt 0:03:41][%cal Oh2h3]} Nxg3 {[%emt 0:00:39]} 13. hxg3 {[%emt 0:00:09]} Qf6 {[%emt 0:00:42]} 14. Nf1 {[%emt 0:05:00]} Ne7 {[%emt 0:02:18]} 15. N1h2 {[%emt 0:02:43]} Bd7 {[%emt 0:00:34]} 16. d4 {[%emt 0:01:12]} exd4 {[%emt 0:00:42]} 17. cxd4 {[%emt 0:02:52]} (17. e5 {is more complex.} dxe5 18. Nxe5 dxc3 19. Nxd7 Qxf2+ 20. Kh1) 17... Bb4 {[%emt 0:01:13]} 18. Rf1 {[%emt 0:09:00]} Rad8 {[%emt 0:01:21]} (18... Rfe8 $5) 19. Qd3 {[%emt 0:07:20]} (19. Ne1 $11) 19... Ng6 {[%emt 0:00:46]} (19... Rfe8 $15) 20. Ne1 $11 {[%emt 0:02:22]} c6 {[%emt 0:08:36]} 21. Nc2 {[%emt 0:02:21]} d5 {[%emt 0:00:51]} 22. exd5 {[%emt 0:01:48]} cxd5 {[%emt 0:00:34]} 23. Bxd5 {[%emt 0:01:14]} Bd6 {[%emt 0:01:38]} 24. Ne3 {[%emt 0:03:50]} b6 {[%emt 0:03:23]} 25. Neg4 {[%emt 0:15:16]} (25. Rac1 $16) 25... Bxg4 {[%emt 0:01:31]} ({Better is} 25... Qg7 $14) 26. Nxg4 $16 {[%emt 0:00:07]} Qg7 {[%emt 0:00:07] Black is weak on the light squares} 27. Qf3 {[%emt 0:01:00] White has more active pieces.} Be7 {[%emt 0:03:42]} (27... Kh8 $16) 28. Rad1 $36 {[%emt 0:05:52][%cal Ba1d1,Bd1c1,Bc1c6][%mdl 2080] White is in control.} h5 {[%emt 0:02:50]} 29. Ne3 {[%emt 0:00:13]} g4 {[%emt 0:02:31]} 30. Qf5 {[%emt 0:01:29]} Qh6 {[%emt 0:00:12]} 31. Rc1 {[%emt 0:02:07] Rc6 would now be deadly.} Qg5 {[%emt 0:00:55]} 32. Rc6 {[%emt 0:02:11][%csl LRb6,LRg6]} Kh7 {[%emt 0:02:23] [#] And now ...Qxf5 would win.} 33. Qe4 {[%emt 0:02:15]} (33. Rxb6 Qxf5 34. Nxf5 Rxd5 $17) 33... Bf6 {[%emt 0:01:37] Wards off f4} (33... f5 {is a better defense.} 34. Qd3 Kg7) 34. Rc7 {[%emt 0:08:24]} Kg8 {[%emt 0:08:08]} 35. f4 {[%emt 0:02:10]} Qh6 {[%emt 0:02:47]} (35... gxf3 {was necessary.} 36. Rxf3 Nh8) 36. Rfc1 {[%emt 0:03:25][%cal Bf1c1,Bc1c6,Bc6b6,Bb6b7][%mdl 32]} Nh8 {[%emt 0:09:16]} 37. R1c6 {[%emt 0:04:01][%cal Oe3f5] [#] Black must now prevent Nf5!} Rde8 {[%emt 0:02:50]} 38. Qf5 {[%emt 0:00:26]} Kg7 {[%emt 0:01:21]} 39. Qd3 {[%emt 0:02:25]} Rxe3 {[%emt 0:01:55]} 40. Qxe3 {[%emt 0:00:01]} Rd8 {[%emt 0:00:01] Repels Rd7} (40... h4 $142 41. Rxb6 hxg3) 41. Qe4 {[%emt 0:33:07]} (41. Rc8 $142) 41... h4 {[%emt 0:30:26]} 42. Rxb6 {[%emt 0:00:00] aiming for Rcc6.} hxg3 {[%emt 0:00:00]} 43. Rbb7 {[%emt 0:00:00]} Qh5 {[%emt 0:00:00]} (43... Rf8 $142 44. Kf1 Qh1+ 45. Ke2 Qg1) 44. Bxf7 {[%emt 0:00:00]} Qh2+ {[%emt 0:00:00]} 45. Kf1 {[%emt 0:00:00] White mates.} Qh1+ {[%emt 0:00:00]} 46. Ke2 {[%emt 0:00:00]} Kf8 {[%emt 0:00:00]} 47. Be6 {[%emt 0:00:00]} Qh5 {[%emt 0:00:00]} 48. Rh7 {[%emt 0:00:00] Weighted Error Value: White=0.42/Black=0.49.  Mistake:       	White=3     	Black=7      Inaccurate:     	White=2     	Black=9      OK:         	White=14    	Black=13     Best:        	White=1     	Black=2} 1-0

[Event "Bangabandhu Premier Div League 2023-24"]
[Site "Dhaka"]
[Date "2024.02.08"]
[Round "8.7"]
[White "Ter-Sahakyan, Samvel"]
[Black "Mohammed Abdul, Malek"]
[Result "1-0"]
[ECO "D37"]
[WhiteElo "2649"]
[BlackElo "2047"]
[Annotator "TA"]
[PlyCount "67"]
[EventDate "2024.02.01"]
[EventCountry "BAN"]
[SourceTitle "playchess.com"]
[Source "ChessBase"]
[SourceQuality "1"]
[TimeControl "40/5400+30:1800+30"]

{[%evp 9,67,0,11,16,26,0,10,2,81,76,77,73,120,127,135,129,120,126,123,106,121,92,134,134,136,129,137,137,152,148,205,190,207,216,216,204,212,215,226,199,254,191,243,218,234,227,222,166,219,199,312,300,416,409,485,495,496,499,448,453]} 1. d4 {[%emt 0:00:05]} d5 {[%emt 0:00:14]} 2. c4 {[%emt 0:00:07]} e6 {[%emt 0:00:05]} 3. Nc3 {[%emt 0:00:15]} Nf6 {[%emt 0:00:19]} 4. Nf3 {[%emt 0:01:36]} a6 {[%emt 0:01:47]} 5. g3 {[%emt 1:30:57]} Nbd7 {[%emt 0:05:02]} 6. Bg2 {[%emt 0:00:30]} dxc4 {[%emt 1:26:03]} 7. O-O {[%emt 0:00:30]} Rb8 {[%emt 0:00:30]} 8. e4 {[%emt 0:00:30] The position is equal.} Nb6 {[%emt 0:00:30]} (8... b5 $11 {keeps the balance.}) 9. a4 $16 {[%emt 0:00:30][%mdl 1024] White has strong compensation.} a5 {[%emt 0:00:30]} 10. Bf4 {[%emt 0:00:30]} Bb4 {[%emt 0:00:00]} ({Better is} 10... Nh5) 11. Nb5 {[%emt 0:00:00]} Na8 {[%emt 0:01:00]} 12. Ne5 {[%emt 0:01:00]} Bd7 {[%emt 0:00:00]} 13. Nxc4 {[%emt 0:00:00] White is much more active.} O-O 14. Ne5 $36 {[%emt 0:01:00][%mdl 2048] Keeping Black busy.} Be8 {[%emt 0:01:30]} 15. g4 {[%emt 0:00:30][%cal Bg3g4,Bg4g5][%mdl 32]} Rc8 {[%emt 0:00:30]} 16. g5 {[%emt 0:00:00]} Nd7 {[%emt 0:00:00] [#]} 17. Nd3 {[%emt 0:00:00]} Be7 {[%emt 0:01:00]} 18. h4 {[%emt 0:01:30]} Ndb6 {[%emt 0:00:30] [#]} 19. Nc5 $1 {[%emt 0:00:30]} Bxc5 {[%emt 0:00:00]} (19... Rb8 $16 20. b3 Nc8) 20. dxc5 $18 {[%emt 0:00:00]} Qxd1 {[%emt 0:00:00]} 21. Rfxd1 {[%emt 0:00:00]} ({Worse is} 21. Raxd1 Nxa4 22. Na7 Rb8 $11) 21... Nxa4 {[%emt 0:01:30] Black is weak on the dark squares} 22. Rxa4 {[%emt 0:00:00]} Bxb5 {[%emt 0:00:00]} 23. Rxa5 {[%emt 0:00:00]} Bc6 {[%emt 0:01:00]} 24. b4 {[%emt 0:02:30][%cal Bb2b4,Bb4c5][%mdl 32]} b6 {[%emt 0:00:30]} (24... Rfe8 $142 25. Ra7 (25. b5 b6 $18) 25... Rb8) 25. Ra7 {[%emt 0:00:30]} Rfe8 {[%emt 0:00:30]} (25... bxc5 {was called for.} 26. bxc5 Rce8) 26. Be5 {[%emt 0:00:30]} bxc5 {[%emt 0:00:00]} 27. bxc5 {[%emt 0:00:00]} Rf8 {[%emt 0:01:00]} 28. Bg3 {[%emt 0:01:00]} Rfe8 {[%emt 0:00:30]} (28... h6 {is a better defense.} 29. gxh6 gxh6) 29. f3 {[%emt 0:00:30]} e5 {[%emt 0:00:30]} (29... Red8 $142 30. Rda1 (30. Rxd8+ Rxd8 31. Bf1 Kf8 $18) 30... Rb8) 30. Rb1 {[%emt 0:00:30]} Bd7 {[%emt 0:00:30]} 31. Bf1 {[%emt 0:00:30]} f6 {[%emt 0:00:00]} 32. Ba6 {[%emt 0:00:30] White is clearly winning.} Rcd8 {[%emt 0:01:00]} 33. Bb7 {[%emt 0:00:30]} Be6 {[%emt 0:00:30]} 34. Rba1 {[%emt 0:00:00] Black did not feel at home in the position after the opening.   Weighted Error Value: White=0.09 (flawless) /Black=0.24 (precise) .  Mistake:       	---       	Black=7      Inaccurate:     	---       	Black=2      OK:         	White=14    	Black=11     Best:        	White=2     	Black=1      Strong:       	White=1     	---} 1-0

[Event "Bangabandhu Premier Div League 2023-24"]
[Site "Dhaka"]
[Date "2024.02.08"]
[Round "8.7"]
[White "Arpan Das"]
[Black "Tanvir, Alam"]
[Result "1-0"]
[ECO "B92"]
[WhiteElo "2367"]
[BlackElo "1836"]
[Annotator "TA"]
[PlyCount "70"]
[EventDate "2024.02.01"]
[EventCountry "BAN"]
[SourceTitle "playchess.com"]
[Source "ChessBase"]
[SourceQuality "1"]
[TimeControl "40/5400+30:1800+30"]

{[%evp 19,70,6,30,19,29,21,16,1,16,0,33,12,47,39,34,32,57,33,85,83,85,91,85,85,122,125,113,106,208,200,227,228,227,226,422,421,731,730,734,725,880,822,902,835,791,604,1406,1391,1552,48,1658,1626,2879]} 1. e4 {[%emt 0:00:26]} c5 {[%emt 0:00:07]} 2. Nf3 {[%emt 0:00:09]} d6 {[%emt 0:00:07]} 3. d4 {[%emt 0:00:06]} cxd4 {[%emt 0:00:03]} 4. Nxd4 {[%emt 0:00:05]} Nf6 {[%emt 0:00:04]} 5. Nc3 {[%emt 0:00:05]} a6 {[%emt 0:00:01]} 6. Be2 {[%emt 0:00:39]} e5 {[%emt 0:00:11]} 7. Nb3 {[%emt 0:00:56]} Be6 {[%emt 0:00:09]} 8. Be3 {[%emt 0:00:20]} Be7 {[%emt 0:01:14]} 9. Nd5 {[%emt 0:00:39]} Bxd5 {[%emt 0:00:24]} 10. exd5 {[%emt 0:00:08]} Nbd7 {[%emt 0:00:38]} 11. a4 {[%emt 0:00:53]} O-O {[%emt 0:00:21]} 12. O-O {[%emt 0:04:38]} Ne8 {[%emt 0:05:29]} 13. Qd2 {[%emt 0:01:04] The position is equal.} f5 {[%emt 0:00:15] [#] ...f4 would now be deadly.} 14. f3 {[%emt 0:01:33]} a5 {[%emt 0:04:07]} (14... f4 $5 15. Bf2 $8 Bh4 $16) 15. Kh1 {[%emt 0:02:25] Black is weak on the light squares} Qc7 {[%emt 0:04:56]} 16. Bb5 {[%emt 0:25:25][%cal Ob3a5]} Nef6 {[%emt 0:04:41]} 17. Rac1 {[%emt 0:00:41]} b6 {[%emt 0:09:13]} 18. Rce1 {[%emt 0:02:41]} Rfc8 {[%emt 0:10:36]} (18... Rac8 $14) 19. c3 $16 {[%emt 0:01:19] White is more active. Black is now going downhill.} Nc5 {[%emt 0:15:05]} 20. Na1 {[%emt 0:01:35][%cal Bb3a1,Ba1c2,Bc2a3,Ba3c4][%mdl 32]} Bf8 {[%emt 0:02:18]} 21. Bc6 {[%emt 0:07:04]} Ra7 {[%emt 0:00:37]} 22. Nc2 {[%emt 0:00:12]} Qf7 {[%emt 0:02:29]} 23. Na3 {[%emt 0:00:57]} Qh5 {[%emt 0:04:42]} (23... f4 $16 {keeps fighting.}) 24. Nc4 {[%emt 0:04:53]} f4 {[%emt 0:02:39]} 25. Bg1 {[%emt 0:05:58]} (25. Nxb6 $2 {loses.} fxe3 26. Qe2 Rb8 $19) 25... Rb8 {[%emt 0:00:03]} 26. b4 {[%emt 0:02:24][%cal Bb2b4,Bb4a5,Ba5b6][%mdl 32]} Ncd7 {[%emt 0:09:20]} (26... axb4 27. cxb4 Nxa4) 27. bxa5 $18 {[%emt 0:01:02]} g5 {[%emt 0:03:55]} (27... Rxa5 $142 28. Nxa5 bxa5) 28. axb6 {[%emt 0:00:24]} Ra6 {[%emt 0:00:08]} 29. Qd3 {[%emt 0:03:10]} g4 {[%emt 0:01:58]} 30. fxg4 {[%emt 0:03:20]} Qxg4 {[%emt 0:00:51] [#]} 31. Ne3 $1 {[%emt 0:07:16][%mdl 512]} fxe3 {[%emt 0:02:57]} 32. Qxa6 {[%emt 0:00:17]} Bh6 {[%emt 0:02:26]} 33. Bxe3 {[%emt 0:01:23]} Bxe3 {[%emt 0:00:03]} 34. Re2 $2 {[%emt 0:23:23]} ({White should try} 34. Rxe3 $18 Nh5 35. Bxd7 Qxd7 36. a5) 34... Bf2 $2 {[%mdl 8192]} 35. Rexf2 {[%emt 0:00:00]} Qh4 {[%emt 0:00:58] Weighted Error Value: White=0.53/Black=0.37.  Mistake:       	---       	Black=4      Inaccurate:     	---       	Black=4      OK:         	White=8     	Black=7      Best:        	White=1     	---} 1-0

[Event "Bangabandhu Premier Div League 2023-24"]
[Site "Dhaka"]
[Date "2024.02.08"]
[Round "8.8"]
[White "Harikrishnan.A.Ra"]
[Black "Rahman, Ziaur"]
[Result "1/2-1/2"]
[ECO "A11"]
[WhiteElo "2454"]
[BlackElo "2428"]
[Annotator "TA"]
[PlyCount "74"]
[EventDate "2024.02.01"]
[EventCountry "BAN"]
[SourceTitle "playchess.com"]
[Source "ChessBase"]
[SourceQuality "1"]
[TimeControl "40/5400+30:1800+30"]

{[%evp 11,74,18,22,20,26,8,25,24,26,29,46,59,49,47,47,62,68,60,65,63,68,81,76,49,66,73,67,64,86,86,88,84,78,79,79,86,93,87,85,89,79,71,68,81,84,83,137,53,64,58,55,16,19,24,20,6,5,2,8,0,0,0,0,0,0]} 1. Nf3 {[%emt 0:00:09]} d5 {[%emt 0:00:13]} 2. g3 {[%emt 0:00:54]} c6 {[%emt 0:01:17]} 3. Bg2 {[%emt 0:00:19]} Bf5 {[%emt 0:00:54]} 4. O-O {[%emt 0:00:32]} e6 {[%emt 0:02:35]} 5. c4 {[%emt 1:31:06]} Nf6 {[%emt 1:28:01]} 6. Qb3 {[%emt 0:00:00]} Qb6 {[%emt 0:00:00]} 7. d3 {[%emt 0:01:00]} Nbd7 {[%emt 0:01:00]} 8. cxd5 {[%emt 0:00:30]} Qxb3 {[%emt 0:00:00]} 9. axb3 {[%emt 0:00:00] Black must now prevent dxc6. White has an edge.} exd5 {[%emt 0:00:00]} 10. Bd2 {[%emt 0:01:00]} Bc5 {[%emt 0:00:00]} 11. b4 {[%emt 0:00:00]} Bb6 {[%emt 0:02:00] [#]} 12. b5 $1 {[%emt 0:01:00]} O-O {[%emt 0:00:30]} 13. bxc6 {[%emt 0:00:00]} bxc6 {[%emt 0:00:00]} 14. h3 {[%emt 0:00:00]} h6 {[%emt 0:01:00]} 15. g4 {[%emt 0:01:30]} Bg6 {[%emt 0:00:30]} 16. Rc1 {[%emt 0:00:00]} Rfe8 {[%emt 0:00:00]} 17. Bf1 {[%emt 0:01:00]} ({Much weaker is} 17. Rxc6 Rxe2 18. d4 Be4 $11) 17... Rac8 {[%emt 0:00:00]} 18. Nc3 {[%emt 0:00:00]} Nc5 {[%emt 0:00:00]} 19. Ra3 {[%emt 0:00:00] Prevents Nb3.} d4 {[%emt 0:02:00] [#]} 20. Na4 {[%emt 0:00:00]} ({But not} 20. Nxd4 $6 Nxd3 21. exd3 Bxd4 $11) 20... Nxa4 {[%emt 0:00:00]} 21. Rxa4 {[%emt 0:00:00]} c5 {[%emt 0:00:00]} 22. Rac4 {[%emt 0:02:30]} Rcd8 {[%emt 0:00:00]} 23. b4 {[%emt 0:00:30]} cxb4 {[%emt 0:00:00]} 24. Bxb4 {[%emt 0:00:30]} h5 {[%emt 0:02:30]} 25. g5 {[%emt 0:00:00]} Nd5 {[%emt 0:00:00]} 26. Bc5 {[%emt 0:00:00]} (26. Nxd4 $2 {is the wrong capture.} Nxb4 27. Nf3 a5 $19) 26... Bxc5 {[%emt 0:00:00]} 27. Rxc5 {[%emt 0:00:00]} Nf4 {[%emt 0:00:00] [#]} 28. R1c2 {[%emt 0:02:00]} h4 {[%emt 0:00:00]} 29. R5c4 {[%emt 0:00:00]} (29. Nxh4 $16 Kh7 30. Rc7) 29... Ne6 $14 {[%emt 0:02:30]} 30. Nxh4 {[%emt 0:01:00]} Rd5 {[%emt 0:00:00]} 31. Nxg6 {[%emt 0:00:00]} Rxg5+ {[%emt 0:00:00]} 32. Bg2 {[%emt 0:00:00] Rc8 is the strong threat.} Rxg6 {[%emt 0:01:30]} 33. Rc8 {[%emt 0:01:30] The position is equal.} Rxc8 {[%emt 0:00:00]} 34. Rxc8+ {[%emt 0:00:00]} Kh7 {[%emt 0:00:00]} 35. e3 {[%emt 0:00:00] Dodges Nf4} Rg5 {[%emt 0:00:00]} 36. Re8 {[%emt 0:01:30]} Ra5 {[%emt 0:00:00]} 37. Re7 {[%emt 0:00:00]} Kg6 {[%emt 0:00:00] Weighted Error Value: White=0.08 (flawless) /Black=0.05 (flawless) .  Mistake:       	White=1     	Black=1      Inaccurate:     	White=2     	---        OK:         	White=15    	Black=15     Best:        	---       	Black=5} 1/2-1/2